bitfinex-derivatives/quotes_SOLF0:USTF0_20251224
["timestamp","ask_amount","ask_price","bid_price","bid_amount"]
[1766595953566,40.79606303,122.78,122.71,39.17]
[1766595954177,7.3353,122.77,122.71,39.17]
[1766595954676,0.05590636,122.75,122.73,0.06067656]
[1766595956582,7.3352,122.77,122.73,0.06067656]
[1766595957079,48.0744,122.79,122.73,0.06067656]
[1766595957681,0.05249819,122.77,122.73,39.23067656]
[1766595958179,40.74,122.81,122.73,39.23067656]
[1766595958375,40.74,122.81,122.74,7.3368]
[1766595958576,40.74,122.81,122.74,46.5068]
[1766595959274,0.05589991,122.79,122.76,0.06088011]
[1766595959979,0.05589991,122.79,122.76,39.23088011]
[1766595960886,0.05589991,122.79,122.76,0.06088011]
[1766595961677,0.05589991,122.79,122.76,36.50088011]
[1766595961989,0.05589991,122.79,122.76,0.06088011]
[1766595966177,38.17369085,122.79,122.71,43.7782]
[1766595966376,38.11779094,122.79,122.71,43.7782]
[1766595966576,38.11779094,122.77,122.68,36.44]
[1766595966781,7.3369,122.74,122.68,36.44]
[1766595966987,1.38779094,122.73,122.66,36.44]
[1766595967182,1.38779094,122.73,122.67,7.3411]
[1766595967183,38.11779094,122.73,122.67,7.3411]
[1766595967388,0.05728824,122.71,122.68,0.05177444]
[1766595969886,1.44507918,122.71,122.68,0.05177444]
[1766595970192,1.44507918,122.71,122.65,98.44]
[1766595970193,0.05728824,122.71,122.65,37.82779094]
[1766595970689,0.05728824,122.71,122.65,36.44]
[1766595970891,0.05728824,122.71,122.65,37.82779094]
[1766595971192,0.05728824,122.71,122.67,0.05340269]
[1766595977707,0.05728824,122.71,122.67,7.39440269]
[1766595978595,0.05728824,122.71,122.67,0.05340269]
[1766595979488,36.78728824,122.71,122.67,0.05340269]
[1766595979698,36.78728824,122.71,122.67,0.00340269]
[1766595980295,0.05728824,122.71,122.67,0.00340269]
[1766595981100,36.78728824,122.71,122.67,0.00340269]
[1766595983704,38.17507918,122.71,122.67,0.00340269]
[1766595986602,45.51377918,122.71,122.67,0.00340269]
[1766595987806,44.0693,122.7,122.67,0.00340269]
[1766595988015,36.73,122.68,122.62,36.44]
[1766595988913,0.06124716,122.66,122.64,0.05423766]
[1766595992733,34.10124716,122.66,122.61,62.0]
[1766595992922,34.10124716,122.66,122.48,114.364]
[1766595992923,35.42779094,122.65,122.56,33.63]
[1766595993127,35.42779094,122.65,122.57,33.63]
[1766595993825,0.05255649,122.62,122.6,0.06190434]
[1766595995029,35.42779094,122.67,122.6,33.69190434]
[1766595995232,35.42779094,122.69,122.61,33.63]
[1766595995826,35.42779094,122.69,122.61,95.63]
[1766595996021,35.42779094,122.69,122.61,33.63]
[1766595996224,0.06168499,122.66,122.64,0.05501349]
[1766595996421,34.10168499,122.66,122.59,35.01779094]
[1766595996621,34.10168499,122.66,122.57,33.63]
[1766595996830,34.04,122.66,122.57,33.63]
[1766595997030,34.04,122.66,122.59,7.3458]
[1766595997225,34.04,122.66,122.58,33.85]
[1766595997427,0.06097709,122.63,122.61,0.06211996]
[1766596000632,33.70097709,122.63,122.57,7.3465]
[1766596001228,33.70097709,122.63,122.57,41.1965]
[1766596001424,0.06097709,122.63,122.57,41.1965]
[1766596001629,0.06097709,122.63,122.59,0.05994907]
[1766596002828,0.06097709,122.63,122.59,33.90994907]
[1766596004138,0.00097709,122.63,122.59,33.90994907]
[1766596004832,1.38779094,122.69,122.59,35.29774001]
[1766596005032,33.64,122.72,122.64,33.85]
[1766596005337,33.64,122.72,122.65,35.23779094]
[1766596005831,0.06079569,122.7,122.67,0.05298725]
[1766596006030,33.64,122.74,122.67,33.90298725]
[1766596006235,33.64,122.78,122.67,33.90298725]
[1766596006437,33.64,122.78,122.67,33.85]
[1766596007027,0.05435062,122.74,122.71,0.06086296]
[1766596014845,33.64,122.77,122.71,0.06086296]
[1766596015843,0.05795784,122.75,122.71,0.06086296]
[1766596016039,33.69795784,122.75,122.71,0.06086296]
[1766596016251,33.69795784,122.75,122.62,33.47942972]
[1766596016252,33.69795784,122.75,122.66,41.1912]
[1766596016453,33.64,122.75,122.66,41.1912]
[1766596016750,33.64,122.72,122.64,41.1926]
[1766596016955,33.64,122.72,122.64,33.85]
[1766596017152,0.06039738,122.69,122.67,0.06031163]
[1766596017347,33.64,122.7,122.64,33.85]
[1766596018244,0.05836246,122.68,122.66,0.05268914]
[1766596018558,0.05836246,122.68,122.66,0.00268914]
[1766596019958,33.64,122.74,122.66,0.00268914]
[1766596020259,33.64,122.74,122.65,33.85]
[1766596020758,33.64,122.74,122.66,33.85]
[1766596020959,0.05572158,122.71,122.69,0.05921725]
[1766596023051,0.05572158,122.71,122.66,33.85]
[1766596024050,0.05572158,122.71,122.67,31.75213459]
[1766596024257,31.66,122.75,122.67,31.75213459]
[1766596024563,31.66,122.75,122.66,7.3412]
[1766596024755,31.66,122.75,122.66,39.0312]
[1766596025266,0.0616703,122.72,122.69,0.05573082]
[1766596031064,0.0616703,122.72,122.61,72.12772382]
[1766596031065,31.7216703,122.72,122.61,72.12772382]
[1766596031259,31.66,122.72,122.63,39.0329]
[1766596032262,0.05635767,122.69,122.66,0.05173768]
[1766596032468,0.05767692,122.69,122.66,0.05730343]
[1766596034669,0.05767692,122.69,122.66,7.39890343]
[1766596036373,38.997,122.74,122.66,39.08890343]
[1766596036556,38.997,122.74,122.66,39.0316]
[1766596037472,0.06121146,122.71,122.69,0.06062461]
[1766596042871,31.66,122.74,122.69,0.06062461]
[1766596043074,31.66,122.76,122.69,31.75062461]
[1766596043274,31.66,122.76,122.69,31.69]
[1766596043868,38.9957,122.76,122.69,39.0299]
[1766596044173,0.05154168,122.74,122.71,0.05170657]
[1766596049075,0.00154168,122.74,122.71,31.74170657]
[1766596052587,0.00154168,122.74,122.71,0.05170657]
[1766596054086,0.00154168,122.74,122.71,27.93170657]
[1766596055796,0.00154168,122.74,122.71,35.27040657]
[1766596058996,0.00154168,122.74,122.71,0.05170657]
[1766596060192,0.00154168,122.74,122.71,25.68170657]
[1766596061295,25.45,122.8,122.72,27.80019738]
[1766596061497,25.45,122.82,122.72,27.80019738]
[1766596061694,25.45,122.82,122.76,32.9657]
[1766596061889,53.59019738,122.88,122.76,25.63]
[1766596062096,25.45,122.84,122.76,25.63]
[1766596062293,0.05689994,122.83,122.76,25.63]
[1766596062494,0.05689994,122.83,122.78,7.3344]
[1766596062699,25.45,122.84,122.78,7.3344]
[1766596063097,25.45,122.84,122.77,25.63]
[1766596063290,0.05387151,122.82,122.79,0.05905]
[1766596069305,0.05387151,122.82,122.79,25.68905]
[1766596070904,32.7789,122.88,122.81,25.63]
[1766596071793,0.05262943,122.86,122.83,0.05896362]
[1766596076202,25.50262943,122.86,122.83,0.05896362]
[1766596079700,25.45,122.85,122.8,25.63]
[1766596079910,25.45,122.85,122.78,27.01639351]
[1766596080707,0.05639859,122.83,122.8,0.05717369]
[1766596082009,7.3298,122.86,122.8,24.96717369]
[1766596082507,24.09,122.87,122.81,24.91]
[1766596083009,0.05371343,122.85,122.83,0.0576438]
[1766596084307,24.14371343,122.85,122.79,24.91]
[1766596084511,24.09,122.85,122.79,24.91]
[1766596085311,0.05515447,122.83,122.81,0.05572619]
[1766596086911,0.05515447,122.83,122.81,7.38842619]
[1766596087512,24.09,122.85,122.81,7.38842619]
[1766596088518,0.05519729,122.84,122.81,7.38842619]
[1766596090816,0.05519729,122.84,122.82,7.3321]
[1766596091021,24.09,122.88,122.82,32.2421]
[1766596091220,25.47639351,122.88,122.82,32.2421]
[1766596091521,25.47639351,122.88,122.82,7.3321]
[1766596092022,0.05627814,122.86,122.84,0.05788342]
[1766596093420,0.05627814,122.86,122.82,7.3321]
[1766596093622,0.05627814,122.86,122.81,7.3327]
[1766596093823,24.14627814,122.86,122.8,24.91]
[1766596094224,24.14627814,122.86,122.82,0.05197082]
[1766596094433,24.09,122.85,122.82,0.00197082]
[1766596096433,31.4204,122.85,122.82,0.00197082]
[1766596096629,24.09,122.84,122.82,0.00197082]
[1766596096834,24.09,122.84,122.78,24.91]
[1766596097633,31.421,122.84,122.78,24.91]
[1766596097934,0.05428522,122.82,122.8,0.0534826]
[1766596098136,31.421,122.84,122.8,0.0534826]
[1766596098335,24.09,122.83,122.8,0.0534826]
[1766596099038,24.15149648,122.83,122.8,0.0534826]
[1766596100034,25.47639351,122.82,122.75,128.4258]
[1766596100239,25.47639351,122.82,122.75,32.2458]
[1766596101043,0.05697018,122.8,122.77,0.055518]
[1766596101447,7.3316,122.83,122.77,0.055518]
[1766596101448,7.3316,122.83,122.77,24.965518]
[1766596101939,31.4216,122.83,122.77,24.965518]
[1766596102637,0.00265488,122.81,122.78,24.91]
[1766596102832,31.4208,122.85,122.78,24.91]
[1766596103537,24.09,122.84,122.78,32.2445]
[1766596103840,31.421,122.84,122.78,24.91]
[1766596104145,0.05620979,122.82,122.8,0.00240062]
[1766596109251,24.14620979,122.82,122.8,0.00240062]
[1766596109853,7.3327,122.81,122.8,0.00240062]
[1766596112155,30.6627,122.81,122.8,0.00240062]
[1766596112654,30.6627,122.81,122.75,24.91]
[1766596112855,7.3333,122.8,122.75,24.91]
[1766596113657,0.05757666,122.79,122.76,0.05555083]
[1766596114051,23.38757666,122.79,122.76,0.05555083]
[1766596115354,30.72157666,122.79,122.76,0.05555083]
[1766596116162,23.33,122.77,122.69,23.16]
[1766596116454,24.71639351,122.76,122.69,23.16]
[1766596116953,0.05738657,122.74,122.71,0.05705682]
[1766596124258,32.05219351,122.76,122.71,0.05705682]
[1766596124559,7.337,122.74,122.67,62.0]
[1766596124760,30.667,122.74,122.67,23.65]
[1766596125163,23.33,122.74,122.67,23.65]
[1766596125364,1.38639351,122.76,122.67,25.03639351]
[1766596125365,32.05259351,122.76,122.67,25.03639351]
[1766596125564,0.05940536,122.73,122.7,0.05543582]
[1766596127370,23.33,122.75,122.7,0.05543582]
[1766596128159,30.6652,122.77,122.7,23.70543582]
[1766596128370,0.05178576,122.75,122.72,0.06200919]
[1766596133164,23.38178576,122.75,122.68,23.65]
[1766596133956,23.38178576,122.75,122.66,23.65]
[1766596134158,0.05991337,122.72,122.69,0.05346152]
[1766596136772,0.05991337,122.72,122.69,23.70346152]
[1766596138261,0.05991337,122.72,122.69,0.05346152]
[1766596142176,0.05991337,122.72,122.69,22.09346152]
[1766596142874,0.05991337,122.72,122.69,0.05346152]
[1766596143176,23.42991337,122.72,122.69,0.05346152]
[1766596144563,30.76811337,122.72,122.69,0.05346152]
[1766596144762,23.42991337,122.72,122.69,0.05346152]
[1766596145176,30.7087,122.71,122.65,22.04]
[1766596145376,23.37,122.71,122.65,22.04]
[1766596146075,0.05509555,122.69,122.67,0.06209038]
[1766596153190,23.42509555,122.69,122.64,96.2]
[1766596153482,23.42509555,122.69,122.63,22.04]
[1766596154290,23.42509555,122.69,122.65,0.05857577]
[1766596154892,23.42509555,122.69,122.61,22.04]
[1766596155094,23.37,122.69,122.61,22.04]
[1766596155894,0.05887078,122.66,122.64,0.05621515]
[1766596156081,0.05887078,122.66,122.64,0.06075002]
[1766596156082,0.06230043,122.66,122.64,0.06075002]
[1766596156283,23.43230043,122.66,122.59,24.90995966]
[1766596157290,23.43230043,122.66,122.61,0.05740256]
[1766596157685,30.77410043,122.66,122.61,0.05740256]
[1766596158091,23.37,122.65,122.61,0.05740256]
[1766596158997,23.37,122.64,122.57,22.04]
[1766596159996,0.05537797,122.62,122.59,0.05937807]
[1766596169105,0.05537797,122.62,122.59,22.09937807]
[1766596170202,23.37,122.64,122.59,22.09937807]
[1766596170499,23.37,122.68,122.61,22.04]
[1766596170704,23.37,122.73,122.63,22.04]
[1766596171294,0.06006689,122.69,122.67,0.05490217]
[1766596171497,0.05700632,122.69,122.67,0.05240132]
[1766596175909,7.3381,122.73,122.67,21.36240132]
[1766596175910,23.05,122.73,122.67,21.36240132]
[1766596176701,0.05565938,122.71,122.67,28.70340132]
[1766596179309,22.77565938,122.71,122.67,0.05240132]
[1766596180200,0.05565938,122.71,122.67,0.05240132]
[1766596185023,22.77565938,122.71,122.67,0.00240132]
[1766596185822,22.72,122.68,122.67,0.00240132]
[1766596186013,24.36,122.68,122.67,0.00240132]
[1766596186214,24.36,122.68,122.6,22.92]
[1766596186414,22.72,122.68,122.6,22.92]
[1766596187025,22.72,122.66,122.6,22.92]
[1766596187215,0.06175628,122.64,122.62,0.05334289]
[1766596192814,0.00175628,122.64,122.62,0.05334289]
[1766596200329,22.72175628,122.64,122.58,22.92]
[1766596201126,30.06485628,122.64,122.58,22.92]
[1766596201330,30.06485628,122.64,122.6,0.05690433]
[1766596201736,22.72175628,122.64,122.6,0.05690433]
[1766596201935,0.00175628,122.64,122.6,0.05690433]
[1766596209236,0.00175628,122.64,122.6,21.44690433]
[1766596209536,0.00175628,122.64,122.61,28.7346]
[1766596210128,0.00175628,122.64,122.61,21.39]
[1766596211035,0.00175628,122.64,122.6,0.05690433]
[1766596218843,22.02175628,122.64,122.6,0.05690433]
[1766596233362,0.00175628,122.64,122.6,0.05690433]
[1766596233552,0.00175628,122.64,122.6,20.61690433]
[1766596234561,0.00175628,122.64,122.6,27.96210433]
[1766596249560,0.00175628,122.64,122.61,29.7545]
[1766596250572,20.93,122.68,122.63,22.41]
[1766596250776,28.49873297,122.76,122.68,22.41]
[1766596250980,12.13978746,122.78,122.65,22.41]
[1766596250981,22.32118564,122.75,122.65,22.41]
[1766596251280,20.93,122.7,122.63,22.41]
[1766596251579,0.06108307,122.68,122.65,0.06049255]
[1766596255585,1.39118564,122.73,122.65,0.06049255]
[1766596255777,1.39118564,122.73,122.64,37.35623456]
[1766596256483,0.05806884,122.7,122.67,0.060272]
[1766596257584,20.98806884,122.7,122.67,0.060272]
[1766596258180,20.98806884,122.7,122.67,0.000272]
[1766596258387,20.98806884,122.7,122.64,22.41]
[1766596258583,20.98806884,122.7,122.63,14.94693456]
[1766596258772,20.98806884,122.7,122.63,29.7535]
[1766596259385,20.98806884,122.7,122.65,0.05762734]
[1766596260087,20.93,122.69,122.65,0.05762734]
[1766596260283,20.93,122.69,122.61,37.35773456]
[1766596260478,28.2701,122.69,122.61,22.41]
[1766596260781,20.93,122.68,122.61,22.41]
[1766596261085,20.93,122.68,122.62,7.60343456]
[1766596261387,0.06092679,122.66,122.64,0.05602817]
[1766596263287,21.86092679,122.66,122.6,14.94853456]
[1766596263490,21.86092679,122.66,122.6,36.27853456]
[1766596263679,0.06092679,122.66,122.61,28.93343456]
[1766596263985,0.06092679,122.66,122.62,21.33]
[1766596264187,0.06092679,122.66,122.63,0.05297337]
[1766596264883,0.06092679,122.66,122.63,21.38297337]
[1766596265078,21.8,122.7,122.63,21.38297337]
[1766596265277,21.8,122.7,122.63,21.33]
[1766596266088,0.05407631,122.68,122.65,0.061906]
[1766596266288,0.05407631,122.68,122.65,0.05595573]
[1766596277494,21.85407631,122.68,122.65,0.05595573]
[1766596277790,21.85407631,122.68,122.62,28.91270131]
[1766596278793,21.85407631,122.68,122.64,0.05305244]
[1766596279889,11.36,122.64,122.6,7.59424958]
[1766596280194,11.36,122.64,122.59,21.33]
[1766596280997,0.05240578,122.63,122.6,0.0570561]
[1766596281588,0.05240578,122.63,122.6,21.3870561]
[1766596281794,11.43,122.66,122.6,21.3870561]
[1766596282797,0.0514634,122.64,122.6,21.3870561]
[1766596286397,0.0514634,122.64,122.6,28.7323561]
[1766596286599,18.2404,122.69,122.6,23.55955661]
[1766596286903,10.9,122.69,122.6,23.50250051]
[1766596287104,10.9,122.69,122.62,21.33]
[1766596287602,0.06031747,122.67,122.64,0.0568055]
[1766596290303,10.3,122.71,122.64,21.3868055]
[1766596290606,10.3,122.71,122.64,21.33]
[1766596291400,0.06077684,122.69,122.66,0.06083309]
[1766596291705,0.06077684,122.69,122.66,0.05769922]
[1766596293307,9.83077684,122.69,122.66,0.05769922]
[1766596295697,0.06077684,122.69,122.66,21.18769922]
[1766596301111,0.06077684,122.69,122.66,0.05769922]
[1766596302414,8.38,122.68,122.62,21.17]
[1766596303418,0.06105419,122.66,122.64,0.05554034]
[1766596318218,6.61105419,122.66,122.6,21.17]
[1766596319122,6.61105419,122.66,122.62,0.05178336]
[1766596326724,13.95295419,122.66,122.62,0.05178336]
[1766596326928,6.61105419,122.66,122.59,18.58]
[1766596327329,6.61105419,122.66,122.6,18.58]
[1766596327829,6.61105419,122.66,122.62,0.05760206]
[1766596330039,0.06105419,122.66,122.62,18.63760206]
[1766596330234,5.25,122.71,122.62,30.17420227]
[1766596330535,5.31,122.73,122.65,18.58]
[1766596331136,0.05252423,122.7,122.68,0.05276973]
[1766596333733,5.04,122.74,122.68,18.63276973]
[1766596334239,5.01,122.72,122.68,0.00276973]
[1766596334441,5.01,122.72,122.65,18.58]
[1766596335236,0.05953235,122.7,122.67,0.0590964]
[1766596335635,4.92953235,122.7,122.67,0.0590964]
[1766596336237,0.05953235,122.7,122.67,0.0590964]
[1766596337039,0.05953235,122.7,122.67,18.6390964]
[1766596337237,4.79,122.72,122.67,18.6390964]
[1766596337435,12.0367,122.75,122.67,18.6390964]
[1766596337638,4.7,122.74,122.67,18.58]
[1766596338247,0.052214,122.72,122.69,0.06127307]
[1766596338649,4.7,122.74,122.69,18.64127307]
[1766596339746,0.05513683,122.73,122.69,18.64127307]
[1766596339945,4.51513683,122.73,122.69,0.06127307]
[1766596340354,4.46,122.76,122.69,18.64127307]
[1766596341350,0.05485414,122.74,122.69,18.64127307]
[1766596341649,0.05485414,122.74,122.7,0.06118547]
[1766596343447,0.05485414,122.74,122.7,18.64118547]
[1766596345348,0.00485414,122.74,122.7,18.64118547]
[1766596345552,4.04,122.78,122.71,18.58]
[1766596346454,0.05761995,122.76,122.73,0.05753362]
[1766596347651,0.05761995,122.76,122.73,18.63753362]
[1766596347851,0.05761995,122.76,122.73,0.05753362]
[1766596354656,3.14761995,122.76,122.73,0.05753362]
[1766596355258,0.05761995,122.76,122.73,0.05753362]
[1766596360770,0.05761995,122.76,122.73,17.20753362]
[1766596368975,9.11331995,122.76,122.7,17.15]
[1766596369764,0.05761995,122.76,122.7,17.15]
[1766596369966,0.05761995,122.76,122.72,0.0547239]
[1766596370166,0.05761995,122.76,122.72,17.2047239]
[1766596372668,7.3351,122.78,122.72,17.2047239]
[1766596373079,8.7551,122.78,122.72,17.2047239]
[1766596373777,0.05495615,122.76,122.72,17.2047239]
[1766596375470,0.05495615,122.76,122.72,0.0547239]
[1766596376584,7.39075615,122.76,122.72,0.0547239]
[1766596378680,8.45075615,122.76,122.72,0.0547239]
[1766596380485,0.88,122.74,122.69,24.74124854]
[1766596380689,0.88,122.74,122.69,17.15]
[1766596380990,7.3375,122.73,122.68,7.59124854]
[1766596381190,7.3375,122.73,122.67,24.74124854]
[1766596381488,0.05918339,122.71,122.69,0.05622724]
[1766596383384,7.3375,122.73,122.69,0.05622724]
[1766596384392,0.0615406,122.72,122.69,0.05622724]
[1766596386392,0.0615406,122.72,122.69,16.44622724]
[1766596403499,7.3363,122.75,122.69,16.44622724]
[1766596403699,24.44928607,122.82,122.7,16.39]
[1766596403894,14.6647,122.82,122.71,16.39]
[1766596404600,0.05578575,122.78,122.75,0.05822048]
[1766596413919,0.05578575,122.78,122.75,16.30822048]
[1766596414222,7.3332,122.81,122.75,16.30822048]
[1766596414409,26.15058118,122.84,122.75,16.25]
[1766596414610,2.17074205,122.84,122.73,16.25]
[1766596415213,0.05143979,122.8,122.77,0.06001795]
[1766596415613,7.38513979,122.8,122.77,0.06001795]
[1766596422429,0.05143979,122.8,122.77,0.06001795]
[1766596423728,0.05143979,122.8,122.77,14.73001795]
[1766596425317,0.00143979,122.8,122.77,14.73001795]
[1766596441430,0.00143979,122.8,122.77,0.06001795]
[1766596443531,7.33493979,122.8,122.77,0.06001795]
[1766596444742,7.3342,122.79,122.74,14.32]
[1766596445740,7.3342,122.79,122.75,0.06017682]
[1766596447342,7.3346,122.78,122.75,0.06017682]
[1766596448830,8.72377576,122.77,122.72,14.32]
[1766596449737,0.06154937,122.76,122.73,0.06033622]
[1766596450442,0.00154937,122.76,122.73,14.38033622]
[1766596453949,0.00154937,122.76,122.73,0.06033622]
[1766596456247,8.72592513,122.76,122.73,0.06033622]
[1766596458653,8.72592513,122.76,122.73,14.38033622]
[1766596458853,7.33734937,122.76,122.73,14.38033622]
[1766596459648,7.33734937,122.76,122.73,0.06033622]
[1766596460454,0.00154937,122.76,122.73,14.38033622]
[1766596472052,0.00154937,122.76,122.73,0.06033622]
[1766596473566,7.33734937,122.76,122.73,0.06033622]
[1766596473864,7.33734937,122.76,122.71,15.03]
[1766596474664,7.33734937,122.76,122.72,0.05861073]
[1766596477967,0.00154937,122.76,122.72,0.05861073]
[1766596479369,0.00154937,122.76,122.72,14.63861073]
[1766596496976,0.00154937,122.76,122.72,0.05861073]
[1766596497479,0.00154937,122.76,122.7,14.58]
[1766596498574,7.3375,122.74,122.7,14.58]
[1766596499168,7.3375,122.73,122.7,14.58]
[1766596499369,7.3375,122.73,122.68,22.12202996]
[1766596499575,7.3375,122.73,122.69,0.05571423]
[1766596499773,0.05208953,122.72,122.69,0.05571423]
[1766596503181,7.39038953,122.72,122.69,0.05571423]
[1766596504371,7.39038953,122.72,122.68,14.58]
[1766596504372,7.39038953,122.72,122.66,14.23]
[1766596504779,7.3388,122.71,122.66,14.23]
[1766596505386,7.3388,122.71,122.67,0.06166891]
[1766596505577,7.3388,122.71,122.67,14.29166891]
[1766596506791,1.44066529,122.72,122.67,0.00166891]
[1766596506994,1.38857576,122.7,122.67,0.00166891]
[1766596507375,8.53,122.68,122.61,7.54202996]
[1766596507577,8.53,122.68,122.59,66.24202996]
[1766596508587,0.05965542,122.65,122.62,0.05135631]
[1766596509384,0.05965542,122.65,122.62,14.28135631]
[1766596509783,7.3414,122.67,122.62,14.28135631]
[1766596510284,9.757274,122.74,122.62,14.28135631]
[1766596510487,8.62,122.73,122.62,14.23]
[1766596510690,0.05895703,122.69,122.66,0.053403]
[1766596510883,0.05895703,122.69,122.66,0.057436]
[1766596511292,0.05895703,122.69,122.66,14.287436]
[1766596511689,7.3386,122.72,122.66,14.287436]
[1766596511897,8.64,122.73,122.66,14.23]
[1766596512681,0.05398479,122.71,122.68,14.29066201]
[1766596518389,8.83398479,122.71,122.68,0.06066201]
[1766596519100,0.05398479,122.71,122.68,0.06066201]
[1766596520187,0.05398479,122.71,122.68,14.29066201]
[1766596525390,0.00398479,122.71,122.68,14.29066201]
[1766596547007,8.96,122.76,122.68,14.29066201]
[1766596547201,42.94,122.78,122.68,14.23]
[1766596547510,7.3352,122.77,122.7,14.66]
[1766596548111,0.05133641,122.75,122.72,14.71756127]
[1766596550606,0.00133641,122.75,122.72,14.71756127]
[1766596560125,7.334,122.79,122.72,14.71756127]
[1766596560326,16.594,122.79,122.72,14.71756127]
[1766596561325,0.05937104,122.77,122.72,14.71756127]
[1766596565424,7.3333,122.8,122.72,14.71756127]
[1766596565628,7.3333,122.8,122.72,14.66]
[1766596566230,16.6933,122.8,122.73,14.84]
[1766596566429,0.06057188,122.78,122.75,0.06075237]
[1766596583444,7.39507188,122.78,122.75,0.06075237]
[1766596583644,16.84507188,122.78,122.75,0.06075237]
[1766596587152,16.84507188,122.78,122.72,14.84]
[1766596587153,16.8054,122.77,122.72,14.84]
[1766596588245,0.05340443,122.76,122.73,0.06189815]
[1766596590744,0.05340443,122.76,122.73,14.90189815]
[1766596592952,0.00340443,122.76,122.73,14.90189815]
[1766596596157,17.07366618,122.83,122.74,15.07]
[1766596596453,10.87855007,122.83,122.76,15.07]
[1766596597252,0.05540445,122.81,122.78,0.05654497]
[1766596597759,0.05540445,122.81,122.78,14.34654497]
[1766596599163,16.911,122.84,122.78,14.34654497]
[1766596599360,96.24,122.86,122.78,14.34654497]
[1766596599561,9.58,122.87,122.79,14.29]
[1766596599862,9.58,122.87,122.8,14.29]
[1766596600052,7.3299,122.86,122.8,14.29]
[1766596600457,0.05652703,122.84,122.82,0.06224592]
[1766596600948,16.9092,122.87,122.82,14.35224592]
[1766596601862,0.05203564,122.86,122.82,14.35224592]
[1766596602458,11.09058571,122.86,122.82,0.00224592]
[1766596603653,16.9204,122.85,122.82,0.00224592]
[1766596605769,16.941,122.84,122.82,0.00224592]
[1766596605968,9.61,122.83,122.78,14.29]
[1766596607171,0.05510681,122.82,122.79,0.05576331]
[1766596612175,9.57,122.81,122.76,14.29]
[1766596613176,0.05692534,122.8,122.77,0.06186405]
[1766596613378,7.3322,122.82,122.77,14.35186405]
[1766596613581,10.95855007,122.83,122.77,14.35186405]
[1766596613582,18.29005007,122.83,122.77,14.35186405]
[1766596614279,0.052917,122.81,122.77,14.35186405]
[1766596618582,7.385617,122.81,122.77,0.06186405]
[1766596618782,9.65,122.8,122.77,0.00186405]
[1766596618972,10.97855007,122.79,122.73,14.29]
[1766596619986,0.06024855,122.77,122.75,0.05844363]
[1766596620785,10.97855007,122.81,122.75,14.34844363]
[1766596620986,10.97855007,122.81,122.75,14.29]
[1766596621584,7.3333,122.8,122.77,0.06041994]
[1766596621783,0.05588461,122.79,122.77,0.06041994]
[1766596635201,7.3326,122.82,122.77,14.38041994]
[1766596635504,9.76,122.83,122.77,14.32]
[1766596636202,7.3315,122.84,122.79,14.37176587]
[1766596637294,0.05995936,122.83,122.79,14.37176587]
[1766596643010,7.3315,122.84,122.79,14.37176587]
[1766596653804,7.3316,122.83,122.79,14.37176587]
[1766596654403,16.9816,122.83,122.79,0.05176587]
[1766596656909,7.3323,122.82,122.79,0.05176587]
[1766596657111,16.9323,122.82,122.79,0.05176587]
[1766596661716,16.99136975,122.82,122.77,14.57]
[1766596662708,16.99136975,122.82,122.78,0.0562911]
[1766596664118,9.52,122.81,122.78,0.0562911]
[1766596667816,16.87136975,122.82,122.78,0.0562911]
[1766596669223,0.05906975,122.82,122.78,13.8262911]
[1766596669522,9.47,122.86,122.78,13.8262911]
[1766596669726,9.47,122.86,122.79,13.77]
[1766596670422,9.47,122.86,122.81,0.05581685]
[1766596670618,16.7998,122.86,122.81,0.05581685]
[1766596672022,9.5,122.85,122.81,0.05581685]
[1766596672222,9.5,122.85,122.77,21.3570195]
[1766596672416,11.66879873,122.85,122.77,13.77]
[1766596672621,7.3327,122.81,122.75,13.77]
[1766596673223,0.05578303,122.79,122.77,0.06085494]
[1766596686036,16.6927,122.82,122.77,14.22085494]
[1766596686233,9.36,122.82,122.77,14.16]
[1766596687147,9.36,122.82,122.78,0.06248094]
[1766596687744,7.3328,122.81,122.78,0.06248094]
[1766596691345,16.6528,122.81,122.78,0.06248094]
[1766596692048,16.6434,122.8,122.78,0.00248094]
[1766596692853,16.6954094,122.8,122.78,0.00248094]